bitfinex/quotes_BTCUSD_20220115
["timestamp","ask_amount","ask_price","bid_price","bid_amount"]
[1642243099779,0.83979035,43213.0,43212.0,0.141463]
[1642243099979,0.35,43212.0,43204.0,0.2926]
[1642243100180,0.45,43212.0,43204.0,0.2926]
[1642243100378,0.00018909,43211.0,43205.0,0.69432]
[1642243100781,0.0001719,43210.0,43205.0,0.69432]
[1642243101181,0.00015471,43209.0,43205.0,0.69432]
[1642243101581,0.00013752,43208.0,43205.0,0.69432]
[1642243102030,0.00012033,43207.0,43205.0,0.69432]
[1642243102429,0.00010314,43206.0,43205.0,0.69432]
[1642243103434,0.00010314,43206.0,43205.0,1.09432]
[1642243104332,0.00010314,43206.0,43205.0,1.44432]
[1642243104733,0.00010314,43206.0,43205.0,1.39972]
[1642243105332,0.00010314,43206.0,43205.0,1.775734]
[1642243106480,0.00010314,43206.0,43205.0,1.425734]
[1642243106680,0.00010314,43206.0,43205.0,1.04972]
[1642243106880,0.00010314,43206.0,43205.0,0.64972]
[1642243107483,0.00010314,43206.0,43205.0,1.19972]
[1642243109636,0.00010314,43206.0,43205.0,1.15512]
[1642243109935,0.23010314,43206.0,43205.0,1.15512]
[1642243110936,0.23010314,43206.0,43205.0,0.60512]
[1642243111336,0.23010314,43206.0,43205.0,1.00512]
[1642243112637,0.23010314,43206.0,43205.0,0.60512]
[1642243114284,0.23010314,43206.0,43205.0,0.981134]
[1642243114485,0.23010314,43206.0,43205.0,0.60512]
[1642243114686,0.23010314,43206.0,43205.0,0.56002]
[1642243115285,0.23010314,43206.0,43205.0,1.06002]
[1642243115486,0.23010314,43206.0,43205.0,1.00366745]
[1642243116586,0.23010314,43206.0,43205.0,1.37968145]
[1642243118232,0.23010314,43206.0,43205.0,1.82968145]
[1642243118637,0.22958314,43206.0,43205.0,1.37968145]
[1642243119837,0.22958314,43206.0,43205.0,1.33498145]
[1642243121281,0.22958314,43206.0,43205.0,2.03498145]
[1642243121978,0.22958314,43206.0,43205.0,2.03898145]
[1642243123178,0.22958314,43206.0,43205.0,2.03498145]
[1642243123378,0.22958314,43206.0,43205.0,1.33498145]
[1642243123878,0.22958314,43206.0,43205.0,1.33698145]
[1642243124280,0.22958314,43206.0,43205.0,0.96096745]
[1642243124530,0.22958314,43206.0,43205.0,0.46096745]
[1642243124931,0.22958314,43206.0,43205.0,0.41586745]
[1642243125331,0.22958314,43206.0,43205.0,0.41386745]
[1642243126131,0.22958314,43206.0,43205.0,1.11386745]
[1642243126735,0.22958314,43206.0,43205.0,0.41386745]
[1642243127133,0.22958314,43206.0,43205.0,0.76386745]
[1642243129883,0.22958314,43206.0,43205.0,0.71906745]
[1642243134841,0.22958314,43206.0,43205.0,0.67396745]
[1642243135882,0.22958314,43206.0,43205.0,0.32396745]
[1642243137985,0.22958314,43206.0,43205.0,0.92396745]
[1642243140031,0.22958314,43206.0,43205.0,0.87926745]
[1642243140233,0.22958314,43206.0,43205.0,1.25528145]
[1642243143484,0.07832927,43206.0,43205.0,2.75528145]
[1642243143684,0.07832927,43206.0,43205.0,1.25528145]
[1642243143884,0.07832927,43206.0,43205.0,1.60528145]
[1642243144086,0.07832927,43206.0,43205.0,1.60728145]
[1642243144287,0.07832927,43206.0,43205.0,1.25728145]
[1642243144887,0.07832927,43206.0,43205.0,1.66258145]
[1642243145291,0.07832927,43206.0,43205.0,1.66058145]
[1642243145989,0.07832927,43206.0,43205.0,1.66458145]
[1642243147764,0.07832927,43206.0,43205.0,1.66058145]
[1642243147961,0.07832927,43206.0,43205.0,1.66658145]
[1642243149262,0.07832927,43206.0,43205.0,1.66058145]
[1642243150063,0.07832927,43206.0,43205.0,1.62178145]
[1642243151679,0.656511,43216.0,43205.0,1.62178145]
[1642243151879,0.656511,43216.0,43212.0,0.30338875]
[1642243152082,0.00015472,43215.0,43212.0,0.30338875]
[1642243152480,0.00013752,43214.0,43212.0,0.30338875]
[1642243152783,0.00012033,43213.0,43212.0,0.30338875]
[1642243152980,0.00012033,43213.0,43210.0,0.38044838]
[1642243153380,0.00010314,43212.0,43210.0,0.38044838]
[1642243153782,8.595e-05,43211.0,43210.0,0.38044838]
[1642243154428,8.595e-05,43211.0,43209.0,0.27886863]
[1642243154830,6.876e-05,43210.0,43209.0,0.27886863]
[1642243155028,6.876e-05,43210.0,43209.0,0.23416863]
[1642243158284,6.876e-05,43210.0,43205.0,0.18976745]
[1642243159986,6.876e-05,43210.0,43205.0,0.14496745]
[1642243161787,0.12006876,43210.0,43205.0,0.14496745]
[1642243164132,0.21646638,43209.0,43205.0,0.14496745]
[1642243164332,0.12006876,43210.0,43205.0,0.14496745]
[1642243164732,0.20702586,43209.0,43205.0,0.14496745]
[1642243164932,0.12006876,43210.0,43205.0,0.14496745]
[1642243165133,0.20907956,43209.0,43205.0,0.10036745]
[1642243165333,0.22006876,43210.0,43205.0,0.10036745]
[1642243166186,0.12006876,43210.0,43205.0,0.10036745]
[1642243167385,0.20629682,43209.0,43205.0,0.10036745]
[1642243167985,0.22006876,43210.0,43205.0,0.10036745]
[1642243168187,0.21039007,43209.0,43205.0,0.10036745]
[1642243168488,0.22006876,43210.0,43205.0,0.10036745]
[1642243168986,0.12006876,43210.0,43205.0,0.10036745]
[1642243169434,0.20829404,43209.0,43205.0,0.10036745]
[1642243170235,0.22006876,43210.0,43205.0,0.10036745]
[1642243170634,0.12006876,43210.0,43205.0,0.10036745]
[1642243170837,0.12006876,43210.0,43200.0,0.59833443]
[1642243171236,0.20548792,43209.0,43201.0,8.595e-05]
[1642243171839,0.20639893,43209.0,43203.0,0.27317872]
[1642243172239,0.12006876,43210.0,43203.0,0.27317872]
[1642243173686,0.20467851,43209.0,43203.0,0.27317872]
[1642243174483,0.22006876,43210.0,43203.0,0.27317872]
[1642243174990,0.20481485,43209.0,43203.0,0.27317872]
[1642243175585,0.20498977,43209.0,43203.0,0.27317872]
[1642243175787,0.22006876,43210.0,43203.0,0.27317872]
[1642243176586,0.20510146,43209.0,43203.0,0.27317872]
[1642243176786,0.12006876,43210.0,43203.0,0.27317872]
[1642243176787,0.12006876,43210.0,43203.0,0.27307872]
[1642243177042,0.20573053,43209.0,43203.0,0.27307872]
[1642243177842,0.22593537,43210.0,43203.0,0.27307872]
[1642243178643,0.12593537,43210.0,43203.0,0.27307872]
[1642243180245,0.20429907,43209.0,43201.0,8.595e-05]
[1642243180880,0.22593537,43210.0,43201.0,8.595e-05]
[1642243181281,0.22593537,43210.0,43204.0,0.3072347]
[1642243181680,0.20810666,43209.0,43204.0,0.2626347]
[1642243183082,0.22593537,43210.0,43204.0,0.2626347]
[1642243183282,0.12593537,43210.0,43204.0,0.2626347]
[1642243183482,0.2049746,43209.0,43204.0,0.2626347]
[1642243184283,0.22593537,43210.0,43204.0,0.2626347]
[1642243185139,0.12593537,43210.0,43204.0,0.2626347]
[1642243186745,0.12593537,43210.0,43204.0,0.2180347]
[1642243190892,0.12593537,43210.0,43204.0,0.2130347]
[1642243191791,0.12593537,43210.0,43204.0,0.1683347]
[1642243194537,0.12593537,43210.0,43204.0,0.1641347]
[1642243196792,0.12593537,43210.0,43204.0,0.1195347]
[1642243201243,0.02642032,43206.0,43204.0,0.1195347]
[1642243201847,0.02642032,43206.0,43204.0,0.0749347]
[1642243202845,0.02642032,43206.0,43201.0,8.595e-05]
[1642243203189,0.02642032,43206.0,43202.0,0.68939]
[1642243203889,0.02642032,43206.0,43203.0,0.29311333]
[1642243207037,0.02642032,43206.0,43203.0,0.24771333]
[1642243210692,0.02642032,43206.0,43202.0,0.68939]
[1642243211095,0.22420276,43205.0,43202.0,0.68939]
[1642243211295,0.02642032,43206.0,43202.0,0.226198]
[1642243211696,0.26312668,43205.0,43202.0,0.226198]
[1642243211896,0.26312668,43205.0,43197.0,0.26454362]
[1642243211897,0.33884455,43200.0,43197.0,0.26454362]
[1642243212101,0.33884455,43200.0,43195.0,0.0151]
[1642243212102,0.39331521,43199.0,43195.0,0.0151]
[1642243212497,0.49331521,43199.0,43196.0,8.595e-05]
[1642243213298,0.21254546,43198.0,43196.0,8.595e-05]
[1642243215038,0.49331521,43199.0,43196.0,8.595e-05]
[1642243215239,0.20759215,43198.0,43196.0,8.595e-05]
[1642243215439,0.21360855,43198.0,43196.0,8.595e-05]
[1642243216839,0.21360855,43198.0,43193.0,0.24610918]
[1642243217039,0.0060164,43198.0,43193.0,0.24610918]
[1642243217943,0.0060164,43198.0,43188.0,0.03417967]
[1642243218193,0.20931056,43198.0,43188.0,0.03417967]
[1642243218592,0.20931056,43198.0,43190.0,0.69455]
[1642243218792,0.20931056,43198.0,43190.0,0.69465314]
[1642243218992,0.20931056,43198.0,43192.0,0.27935876]
[1642243220093,0.20931056,43198.0,43190.0,0.69465314]
[1642243220490,0.0060164,43198.0,43190.0,0.69465314]
[1642243221093,0.0060164,43198.0,43194.0,0.30997319]
[1642243221294,0.0060164,43198.0,43194.0,0.60407253]
[1642243221947,0.0060164,43198.0,43194.0,0.55937253]
[1642243222147,0.0060164,43198.0,43194.0,0.29409934]
[1642243223950,0.1260164,43198.0,43194.0,0.29409934]
[1642243225452,0.20967232,43197.0,43194.0,0.29409934]
[1642243225689,0.20967232,43197.0,43190.0,0.69465314]
[1642243225894,0.2260164,43198.0,43190.0,0.69465314]
[1642243226491,0.2260164,43198.0,43191.0,0.32877343]
[1642243226896,0.1260164,43198.0,43192.0,6.876e-05]
[1642243227192,0.1260164,43198.0,43191.0,0.28304219]
[1642243227393,8.595e-05,43197.0,43191.0,0.28304219]
[1642243227593,8.595e-05,43197.0,43190.0,0.94540569]
[1642243227793,6.876e-05,43196.0,43190.0,0.94540569]
[1642243227992,6.876e-05,43196.0,43190.0,0.94640569]
[1642243228192,8.595e-05,43197.0,43190.0,0.94640569]
[1642243228592,6.876e-05,43196.0,43190.0,0.94640569]
[1642243228992,8.595e-05,43197.0,43190.0,0.94640569]
[1642243229441,6.876e-05,43196.0,43190.0,0.94640569]
[1642243229840,8.595e-05,43197.0,43190.0,0.94540569]
[1642243230041,8.595e-05,43197.0,43190.0,0.94740569]
[1642243230241,6.876e-05,43196.0,43190.0,0.94740569]
[1642243230641,0.34065644,43197.0,43190.0,0.69655]
[1642243231044,6.876e-05,43196.0,43190.0,0.69655]
[1642243231441,6.876e-05,43196.0,43190.0,0.69455]
[1642243232043,6.876e-05,43196.0,43190.0,0.65385]
[1642243232742,6.876e-05,43196.0,43191.0,0.057896]
[1642243234091,6.876e-05,43196.0,43193.0,0.2767726]
[1642243237045,0.38818334,43195.0,43190.0,0.60505]
[1642243237446,0.48818334,43195.0,43190.0,0.60505]
[1642243238046,0.48818334,43195.0,43190.0,0.86837359]
[1642243239345,0.1,43195.0,43190.0,0.86837359]
[1642243239544,6.876e-05,43196.0,43190.0,0.86837359]
[1642243239946,6.876e-05,43196.0,43190.0,0.86537359]
[1642243240146,6.876e-05,43196.0,43190.0,0.86837359]
[1642243241895,6.876e-05,43196.0,43190.0,0.86537359]
[1642243242091,6.876e-05,43196.0,43190.0,0.82367359]
[1642243243092,6.876e-05,43196.0,43190.0,1.02307403]
[1642243243293,6.876e-05,43196.0,43190.0,0.82367359]
[1642243243593,6.876e-05,43196.0,43190.0,0.82067359]
[1642243244191,6.876e-05,43196.0,43190.0,0.82567359]
[1642243245240,6.876e-05,43196.0,43190.0,1.02791068]
[1642243245440,6.876e-05,43196.0,43190.0,0.82067359]
[1642243246041,0.12596181,43198.0,43190.0,0.82067359]
[1642243246241,0.12596181,43198.0,43190.0,0.82467359]
[1642243246441,0.12596181,43198.0,43191.0,8.595e-05]
[1642243247243,0.12596181,43198.0,43190.0,0.77985954]
[1642243247443,0.00010314,43197.0,43190.0,0.77585954]
[1642243247844,8.595e-05,43196.0,43190.0,0.77585954]
[1642243248044,8.595e-05,43196.0,43190.0,0.97632428]
[1642243248299,6.876e-05,43195.0,43190.0,0.51853595]
[1642243249302,1.90554569,43191.0,43190.0,0.51853595]
[1642243249701,2.00554569,43191.0,43190.0,0.51853595]
[1642243249901,0.90374323,43191.0,43190.0,0.51553595]
[1642243250100,0.65872923,43191.0,43190.0,0.51553595]
[1642243252040,0.52772923,43191.0,43190.0,0.51553595]
[1642243252240,0.66072923,43191.0,43190.0,0.47083595]
[1642243252641,0.233,43191.0,43190.0,0.47083595]
[1642243253041,0.133,43191.0,43190.0,0.47083595]
[1642243253646,6.876e-05,43195.0,43190.0,0.47083595]
[1642243254646,6.876e-05,43195.0,43192.0,0.33998427]
[1642243255445,6.876e-05,43195.0,43194.0,0.2597701]
[1642243256291,6.876e-05,43195.0,43192.0,0.33998427]
[1642243257292,6.876e-05,43195.0,43194.0,0.25724222]
[1642243258894,6.876e-05,43195.0,43192.0,0.29488427]
[1642243260146,6.876e-05,43195.0,43193.0,0.26204896]
[1642243262351,6.876e-05,43195.0,43193.0,0.21744896]
[1642243266804,0.12596181,43198.0,43193.0,0.21744896]
[1642243267244,0.12596181,43198.0,43193.0,0.17234896]
[1642243269747,0.12596181,43198.0,43192.0,0.29488427]
[1642243270991,0.12596181,43198.0,43194.0,0.2433824]
[1642243272292,0.12596181,43198.0,43194.0,0.1987824]
[1642243273296,0.12596181,43198.0,43192.0,0.29488427]
[1642243277047,0.36903135,43194.0,43192.0,0.29488427]
[1642243277246,0.36903135,43194.0,43192.0,0.25008427]
[1642243277546,0.46903135,43194.0,43190.0,0.47083595]
[1642243277752,0.46903135,43194.0,43190.0,0.00751095]
[1642243277753,0.18243267,43193.0,43190.0,0.00751095]
[1642243277949,0.18243267,43193.0,43191.0,6.876e-05]
[1642243278196,0.8,43192.0,43180.0,2.2174]
[1642243278397,0.28828755,43189.0,43180.0,2.2174]
[1642243278596,0.47377007,43189.0,43184.0,0.00012033]
[1642243278997,0.57377007,43189.0,43184.0,0.00012033]
[1642243279399,0.39441817,43185.0,43184.0,0.00012033]
[1642243279599,0.49441817,43185.0,43184.0,0.00012033]
[1642243280199,0.49441817,43185.0,43180.0,0.00018909]
[1642243280402,0.53741817,43185.0,43180.0,0.00018909]
[1642243281400,0.00586661,43184.0,43180.0,0.00018909]
[1642243281598,0.00586661,43184.0,43175.0,0.00027504]
[1642243281798,0.00586661,43184.0,43176.0,0.69477]
[1642243282044,0.00586661,43184.0,43178.0,0.29965274]
[1642243282445,0.00586661,43184.0,43179.0,0.00020628]
[1642243282645,0.1819307,43184.0,43179.0,0.00020628]
[1642243282846,0.00586661,43184.0,43179.0,0.00020628]
[1642243283246,0.00586661,43184.0,43180.0,0.31106005]
[1642243283447,0.20232584,43184.0,43180.0,0.31106005]
[1642243283748,0.20232584,43184.0,43181.0,0.0001719]
[1642243284046,0.32232584,43184.0,43181.0,0.0001719]
[1642243284446,0.42232584,43184.0,43179.0,0.00020628]
[1642243284848,0.42232584,43184.0,43179.0,0.26011924]
[1642243285246,0.41645923,43184.0,43180.0,0.00018909]
[1642243285446,0.22,43184.0,43180.0,0.00018909]
[1642243285698,0.31481728,43184.0,43180.0,0.00018909]
[1642243285895,0.12,43184.0,43179.0,0.00020628]
[1642243286096,0.22,43184.0,43178.0,0.25390929]
[1642243286298,6.876e-05,43183.0,43178.0,0.25390929]
[1642243286495,0.00608738,43183.0,43179.0,0.34251214]
[1642243287296,0.00608738,43183.0,43179.0,0.29781214]
[1642243289198,0.00608738,43183.0,43179.0,0.35572414]
[1642243290551,0.00608738,43183.0,43179.0,0.29781214]
[1642243290950,0.00608738,43183.0,43178.0,0.25390929]
[1642243291950,0.00348223,43180.0,43178.0,0.25390929]
[1642243292348,0.00348223,43180.0,43178.0,0.20910929]
[1642243293997,0.00348223,43180.0,43178.0,0.54545048]
[1642243297445,0.00348223,43180.0,43178.0,0.50075048]
[1642243301300,0.00348223,43180.0,43179.0,1.876014]
[1642243302402,0.00348223,43180.0,43179.0,1.834414]
[1642243303401,0.00348223,43180.0,43179.0,1.503]
[1642243303603,0.00348223,43180.0,43179.0,1.5]
[1642243305047,0.00348223,43180.0,43178.0,0.16440929]
[1642243306048,0.00348223,43180.0,43178.0,0.50335672]
[1642243307447,0.00348223,43180.0,43178.0,0.45855672]
[1642243308494,0.00348223,43180.0,43178.0,0.46155672]
[1642243310297,0.00348223,43180.0,43178.0,0.45855672]
[1642243310497,0.00348223,43180.0,43178.0,0.45955672]
[1642243311600,0.00348223,43180.0,43179.0,1.476129]
[1642243312445,0.00348223,43180.0,43178.0,0.11960929]
[1642243317699,0.00348223,43180.0,43178.0,0.07430929]
[1642243321345,0.00456961,43183.0,43178.0,0.07430929]
[1642243321546,0.20251171,43183.0,43180.0,0.057914]
[1642243321747,0.20830348,43183.0,43179.0,6.876e-05]
[1642243322547,0.20830348,43183.0,43178.0,0.02947805]
[1642243325003,0.20830348,43183.0,43176.0,0.69477]
[1642243325603,0.54630957,43183.0,43176.0,0.69477]
[1642243326003,0.64630957,43183.0,43176.0,0.69477]
[1642243326204,0.30830348,43183.0,43176.0,0.69477]
[1642243327059,0.20830348,43183.0,43176.0,0.69477]
[1642243327265,0.30830348,43183.0,43176.0,0.69477]
[1642243327460,0.10456961,43183.0,43176.0,0.752692]
[1642243327661,0.00456961,43183.0,43176.0,0.707992]
[1642243328460,0.00443661,43183.0,43176.0,0.69777]
[1642243329662,0.00443661,43183.0,43176.0,0.755691]
[1642243330462,0.00443661,43183.0,43176.0,0.753691]
[1642243331901,0.00443661,43183.0,43176.0,0.752691]
[1642243332102,0.20657867,43183.0,43176.0,0.69477]
[1642243332505,0.20657867,43183.0,43176.0,0.752691]
[1642243332702,0.20657867,43183.0,43176.0,0.707891]
[1642243332903,0.20657867,43183.0,43176.0,0.69477]
[1642243337554,0.20657867,43183.0,43176.0,0.752691]
[1642243337757,0.20657867,43183.0,43176.0,0.707791]
[1642243337955,0.00443661,43183.0,43176.0,0.707791]
[1642243338402,0.09632471,43184.0,43182.0,0.34169965]
[1642243338602,0.07766447,43184.0,43182.0,0.34169965]
[1642243339902,0.07766447,43184.0,43183.0,0.26526441]
[1642243340306,0.07775042,43184.0,43183.0,0.26526441]
[1642243341003,0.07775042,43184.0,43183.0,0.65705077]
[1642243342748,0.07775042,43184.0,43183.0,0.22066441]
[1642243343848,0.07775042,43184.0,43183.0,0.6269589]
[1642243344649,0.07775042,43184.0,43183.0,1.5769589]
[1642243345453,8.595e-05,43184.0,43183.0,1.5769589]
[1642243347709,8.595e-05,43184.0,43183.0,1.5322589]
[1642243347906,8.595e-05,43184.0,43183.0,1.9083879]
[1642243348606,8.595e-05,43184.0,43183.0,1.9103879]
[1642243349971,8.595e-05,43184.0,43183.0,1.5322589]
[1642243350572,8.595e-05,43184.0,43183.0,1.5352589]
[1642243351877,8.595e-05,43184.0,43183.0,1.5322589]
[1642243352576,8.595e-05,43184.0,43183.0,1.5332589]
[1642243352776,8.595e-05,43184.0,43183.0,1.4885589]
[1642243353806,8.595e-05,43184.0,43183.0,1.4875589]
[1642243355406,0.10008595,43184.0,43183.0,1.4875589]
[1642243356406,8.595e-05,43184.0,43183.0,0.5375589]
[1642243356607,8.595e-05,43184.0,43183.0,1.0875589]
[1642243357850,8.595e-05,43184.0,43183.0,1.0425589]
[1642243360153,8.595e-05,43184.0,43183.0,0.4925589]
[1642243360451,8.595e-05,43184.0,43183.0,1.0925589]
[1642243362827,8.595e-05,43184.0,43183.0,1.0478589]
[1642243364955,0.03157207,43187.0,43184.0,0.057909]
[1642243364956,0.02389941,43187.0,43184.0,0.057909]
[1642243366554,0.10389941,43187.0,43184.0,0.057909]
[1642243366751,0.10389941,43187.0,43183.0,0.4478589]
[1642243367954,0.10389941,43187.0,43183.0,0.4031589]
[1642243368206,0.10389941,43187.0,43184.0,0.31537052]
[1642243372875,0.10389941,43187.0,43184.0,0.27047052]
[1642243374574,0.10389941,43187.0,43184.0,0.38627352]
[1642243376707,0.10389941,43187.0,43184.0,0.57394467]
[1642243377405,0.08601773,43187.0,43184.0,0.57394467]
[1642243377804,0.08601773,43187.0,43184.0,0.52934467]
[1642243378205,0.08601773,43187.0,43184.0,0.34167352]
[1642243378404,0.08601773,43187.0,43184.0,0.53088016]
[1642243378604,0.08601773,43187.0,43184.0,0.34167352]
[1642243382259,0.08601773,43187.0,43184.0,0.27047052]
[1642243382860,0.08601773,43187.0,43184.0,0.22557052]
[1642243387961,0.08601773,43187.0,43184.0,0.18077052]
[1642243389362,0.10125111,43196.0,43189.0,0.057897]
[1642243389567,0.00125111,43196.0,43186.0,0.20456996]
[1642243389861,0.1,43198.0,43186.0,0.20456996]
[1642243389862,8.595e-05,43189.0,43187.0,0.376129]
[1642243390262,6.876e-05,43188.0,43187.0,0.376129]
[1642243390712,6.876e-05,43188.0,43187.0,0.491919]
[1642243391112,6.876e-05,43188.0,43187.0,1.991919]
[1642243391711,6.876e-05,43188.0,43187.0,2.04981025]
[1642243391911,6.876e-05,43188.0,43187.0,2.74446025]
[1642243392711,6.876e-05,43188.0,43187.0,2.74746025]
[1642243392912,6.876e-05,43188.0,43187.0,2.70296025]
[1642243393114,0.00123022,43187.0,43175.0,0.69328079]
[1642243393313,0.00126749,43179.0,43175.0,0.69328079]
[1642243393514,0.07174749,43179.0,43178.0,0.00010314]
[1642243394213,0.0776141,43179.0,43178.0,0.00010314]
[1642243394462,0.07174749,43179.0,43178.0,0.00010314]
[1642243394665,0.44783449,43179.0,43175.0,0.44326948]
[1642243395161,0.54783449,43179.0,43175.0,0.44326948]
[1642243395362,0.19420541,43178.0,43175.0,0.44326948]
[1642243396362,0.27420541,43178.0,43173.0,0.31749769]
[1642243396762,0.27420541,43178.0,43174.0,6.876e-05]
[1642243396962,0.03166894,43175.0,43174.0,6.876e-05]
[1642243397162,1.2,43174.0,43166.0,0.057927]
[1642243397368,1.2,43174.0,43167.0,0.69493]
[1642243397369,0.0012538,43168.0,43167.0,0.69493]
[1642243397562,0.0012538,43168.0,43167.0,0.23148433]
[1642243398065,0.0012538,43168.0,43167.0,0.18658433]
[1642243398912,0.0012538,43168.0,43164.0,0.0011]
[1642243400916,0.41852715,43169.0,43164.0,0.0011]
[1642243402667,0.39052715,43169.0,43164.0,0.0011]
[1642243402866,0.33152715,43169.0,43164.0,0.0011]
[1642243403066,0.43152715,43169.0,43162.0,0.34371761]
[1642243403466,0.43152715,43169.0,43163.0,6.876e-05]
[1642243404270,0.141,43169.0,43163.0,6.876e-05]
[1642243404469,0.041,43169.0,43163.0,6.876e-05]
[1642243404668,0.00120605,43171.0,43163.0,6.876e-05]
[1642243404869,0.22587599,43178.0,43163.0,6.876e-05]
[1642243405073,0.00122054,43176.0,43163.0,6.876e-05]
[1642243405270,0.00012033,43174.0,43168.0,0.27929353]
[1642243405710,0.00010314,43173.0,43168.0,0.27929353]
[1642243406112,8.595e-05,43172.0,43169.0,0.34802892]
[1642243406313,8.595e-05,43172.0,43156.0,0.0011]
[1642243406314,2.55121465,43171.0,43156.0,0.0011]
[1642243406517,0.00121732,43159.0,43145.0,0.52858861]
[1642243406712,0.11885732,43159.0,43158.0,8.595e-05]
[1642243406911,0.00586661,43158.0,43146.0,0.20690184]
[1642243407112,0.00120029,43150.0,43146.0,0.20690184]
[1642243407312,0.29234954,43158.0,43149.0,0.34112354]
[1642243407513,0.00586661,43158.0,43156.0,0.33563201]
[1642243407716,0.376087,43157.0,43156.0,0.33563201]
[1642243407913,0.376087,43157.0,43156.0,0.29093201]
[1642243408118,0.476087,43157.0,43150.0,0.43351792]
[1642243408315,0.1,43157.0,43150.0,0.43351792]
[1642243408515,0.1,43157.0,43151.0,0.00012033]
[1642243408815,0.00128397,43156.0,43151.0,0.00012033]
[1642243410064,0.31596416,43152.0,43151.0,0.00012033]
[1642243410272,1.15,43151.0,43147.0,0.69528]
[1642243410468,0.00122937,43148.0,43147.0,0.69528]
[1642243410865,0.00122937,43148.0,43147.0,0.69534876]
[1642243412367,0.00812,43152.0,43147.0,0.69534876]
[1642243412569,0.00124772,43150.0,43149.0,0.3029307]
[1642243413068,0.00124772,43150.0,43149.0,0.2581307]
[1642243413509,0.00124772,43150.0,43147.0,0.23157876]
[1642243413708,0.00120585,43148.0,43147.0,0.23157876]
[1642243414107,0.00120585,43148.0,43143.0,0.0011]
[1642243414307,0.00812,43150.0,43143.0,0.0011]
[1642243414507,0.29571241,43147.0,43143.0,0.0011]
[1642243415614,0.29571241,43147.0,43142.0,0.0022]
[1642243415908,0.20246164,43146.0,43143.0,6.877e-05]
[1642243416109,0.1973702,43146.0,43143.0,6.877e-05]
[1642243416408,0.19301941,43146.0,43143.0,6.877e-05]
[1642243416608,0.19478206,43146.0,43143.0,6.877e-05]
[1642243416807,0.00812,43145.0,43143.0,6.877e-05]
[1642243418072,0.00812,43145.0,43138.0,0.6105358]
[1642243418272,0.00812,43145.0,43139.0,0.69539]
[1642243418469,0.00812,43145.0,43139.0,0.69545876]
[1642243419370,0.00812,43145.0,43140.0,0.25479679]
[1642243420270,0.00812,43150.0,43140.0,0.25479679]
[1642243420718,0.00010315,43149.0,43140.0,0.25479679]
[1642243421118,8.596e-05,43148.0,43140.0,0.25479679]
[1642243421518,6.877e-05,43147.0,43140.0,0.25479679]
[1642243421918,0.00010315,43149.0,43140.0,0.25479679]
[1642243422320,0.00810281,43150.0,43141.0,0.95]
[1642243422518,0.00810281,43150.0,43141.0,0.00012034]
[1642243422720,0.00810281,43150.0,43142.0,0.00010315]
[1642243423020,0.00810281,43150.0,43144.0,0.19883524]
[1642243423423,0.00810281,43151.0,43144.0,0.19883524]
[1642243426072,0.00810281,43151.0,43150.0,0.74209336]
[1642243427774,0.00810281,43151.0,43150.0,3.06818036]
[1642243427973,0.038,43160.0,43150.0,3.16072036]
[1642243428243,0.038,43160.0,43159.0,1.2410906]
[1642243428646,0.00013752,43160.0,43159.0,1.53714365]
[1642243430047,0.00013752,43160.0,43159.0,0.29605305]
[1642243430847,0.00013752,43160.0,43159.0,1.24605305]
[1642243432763,0.00013752,43160.0,43159.0,1.69605305]
[1642243433163,0.00013752,43160.0,43159.0,1.20135305]
[1642243434766,0.00013752,43160.0,43156.0,0.29030808]
[1642243435166,0.00012033,43159.0,43156.0,0.29030808]
[1642243435465,0.00010314,43158.0,43156.0,0.29030808]
[1642243435916,8.595e-05,43157.0,43156.0,0.29030808]
[1642243437617,8.595e-05,43157.0,43156.0,1.09030808]
[1642243438216,8.595e-05,43157.0,43156.0,1.04550808]
[1642243438616,8.595e-05,43157.0,43156.0,1.64550808]
[1642243439018,8.595e-05,43157.0,43156.0,1.04550808]
[1642243439670,8.595e-05,43157.0,43156.0,1.64550808]
[1642243440973,8.595e-05,43157.0,43156.0,0.24550808]
[1642243441573,8.595e-05,43157.0,43156.0,1.14550808]
[1642243442175,0.19539949,43166.0,43161.0,0.05063687]
[1642243442575,0.00013752,43165.0,43161.0,0.05063687]
[1642243443076,0.00012033,43164.0,43161.0,0.00583687]
[1642243443513,0.00010314,43163.0,43161.0,0.00583687]
[1642243443917,8.595e-05,43162.0,43161.0,0.00583687]
[1642243445815,8.595e-05,43162.0,43156.0,0.5407874]
[1642243446214,6.876e-05,43161.0,43156.0,0.5407874]
[1642243446615,0.00012033,43164.0,43156.0,0.5407874]
[1642243447067,0.00010314,43163.0,43158.0,0.33286083]
[1642243447466,8.595e-05,43162.0,43158.0,0.33286083]
[1642243447869,6.876e-05,43161.0,43158.0,0.33286083]
[1642243448272,0.00127806,43160.0,43151.0,0.285]
[1642243448671,0.00127806,43160.0,43152.0,8.595e-05]
[1642243449369,0.00127806,43160.0,43155.0,0.3022155]
[1642243449571,0.00127806,43160.0,43152.0,8.595e-05]
[1642243449869,0.05922,43159.0,43152.0,8.595e-05]
[1642243451717,0.05922,43157.0,43152.0,8.595e-05]
[1642243452118,0.29215296,43155.0,43152.0,8.595e-05]
[1642243452317,0.25320639,43154.0,43153.0,0.6952]
[1642243452720,0.25320639,43154.0,43153.0,0.69526876]
[1642243452918,0.24831647,43154.0,43153.0,0.69526876]
[1642243453118,0.24831647,43154.0,43153.0,0.65066876]
[1642243453319,0.05922,43154.0,43153.0,0.65066876]
[1642243454669,0.25077755,43154.0,43153.0,0.65066876]
[1642243454864,0.25077755,43154.0,43153.0,0.18695176]
[1642243455468,1.00077755,43154.0,43145.0,0.2898]
[1642243455668,0.05922,43148.0,43145.0,0.2898]
[1642243455867,0.05922,43146.0,43139.0,1.53534067]
[1642243456068,0.05922,43146.0,43140.0,0.69537]
[1642243456270,0.05922,43146.0,43140.0,0.69559348]
[1642243456867,0.05922,43146.0,43140.0,0.95143086]
[1642243457669,0.05922,43144.0,43140.0,0.95143086]
[1642243458225,0.05922,43144.0,43140.0,0.90683086]
[1642243462764,0.05908828,43143.0,43140.0,0.90683086]
[1642243462968,0.05908828,43143.0,43141.0,0.21137651]
[1642243463167,0.05908828,43143.0,43142.0,2.24167943]
[1642243463365,0.05908828,43143.0,43142.0,2.79186853]
[1642243463565,0.05908828,43143.0,43142.0,3.53184853]
[1642243463967,0.05908828,43143.0,43142.0,2.98184853]
[1642243464765,0.02729524,43151.0,43143.0,2.5]
[1642243464970,0.00726963,43155.0,43145.0,2.6]
[1642243464971,0.004,43155.0,43145.0,2.6]
[1642243465168,0.004,43155.0,43154.0,0.00124577]
[1642243465467,0.009283,43167.0,43159.0,0.00124544]
[1642243465714,0.009283,43167.0,43160.0,0.375916]
[1642243465914,0.0001719,43163.0,43161.0,0.32866457]
[1642243466118,0.0001719,43163.0,43162.0,2.175276]
[1642243466313,0.009283,43167.0,43162.0,2.175276]
[1642243466613,0.00022347,43166.0,43163.0,0.31434786]
[1642243466813,0.00022347,43166.0,43164.0,0.37588]
[1642243467017,0.00020628,43165.0,43164.0,0.37588]
[1642243467214,0.00020628,43165.0,43164.0,0.58260328]
[1642243467415,0.1294557,43174.0,43165.0,2.5]